fUST/lending_fUST_20241128
["ID","MTS","AMOUNT","RATE_DAILY","PERIOD"]
[343607192,1732745488705,-660.42938616,0.00024834,3]
[343607193,1732745488714,-190.702193,0.00024835,7]
[343607194,1732745488723,-190.702193,0.00024835,7]
[343607195,1732745488732,-151.0,0.00024835,7]
[343607196,1732745488742,-151.0,0.00024835,7]
[343607197,1732745488751,-151.0,0.00024835,7]
[343607198,1732745488760,-502.019044,0.00024835,7]
[343607199,1732745488769,-502.019044,0.00024835,7]
[343607200,1732745488779,-502.019044,0.00024835,7]
[343607201,1732745488788,-502.019044,0.00024835,7]
[343607202,1732745488797,-502.019044,0.00024835,7]
[343607203,1732745488807,-502.019044,0.00024835,7]
[343607204,1732745488816,-151.0,0.00024835,2]
[343607205,1732745488825,-151.0,0.00024835,2]
[343607206,1732745488834,-151.0,0.00024835,2]
[343607207,1732745488844,-151.0,0.00024835,7]
[343607208,1732745488853,-151.0,0.00024835,7]
[343607209,1732745488864,-151.0,0.00024835,7]
[343607210,1732745488874,-153.007081,0.00024835,7]
[343607211,1732745488883,-151.0,0.00024835,7]
[343607212,1732745488893,-151.0,0.00024835,7]
[343607213,1732745488902,-151.0,0.00024835,7]
[343607214,1732745488911,-151.0,0.00024835,7]
[343607215,1732745488921,-168.490122,0.00024835,7]
[343607216,1732745488930,-500.0,0.00024835,3]
[343607217,1732745488940,-494.08,0.00024835,3]
[343607218,1732745488950,-575.582904,0.00024835,7]
[343607219,1732745488959,-575.582904,0.00024835,7]
[343607220,1732745488969,-575.582904,0.00024835,7]
[343607221,1732745488978,-575.582904,0.00024835,7]
[343607222,1732745488988,-575.582904,0.00024835,7]
[343607223,1732745488998,-575.582904,0.00024835,7]
[343607224,1732745489007,-151.0,0.00024835,7]
[343607225,1732745489017,-177.172919,0.00024835,7]
[343607226,1732745489026,-177.172919,0.00024835,7]
[343607227,1732745489035,-177.172919,0.00024835,7]
[343607228,1732745489044,-177.172919,0.00024835,7]
[343607229,1732745489053,-177.172919,0.00024835,7]
[343607230,1732745489063,-177.172919,0.00024835,7]
[343607231,1732745489072,-196.3,0.00024835,7]
[343607232,1732745489081,-196.3,0.00024835,7]
[343607233,1732745489090,-196.3,0.00024835,7]
[343607234,1732745489100,-196.3,0.00024835,7]
[343607235,1732745489112,-196.3,0.00024835,7]
[343607236,1732745489122,-196.3,0.00024835,7]
[343607237,1732745489132,-304.368556,0.00024835,7]
[343607238,1732745489141,-304.368556,0.00024835,7]
[343607239,1732745489151,-304.368556,0.00024835,7]
[343607240,1732745489161,-304.368556,0.00024835,7]
[343607241,1732745489170,-304.368556,0.00024835,7]
[343607242,1732745489180,-304.368556,0.00024835,7]
[343607243,1732745489189,-560.556269,0.00024835,7]
[343607244,1732745489199,-560.556269,0.00024835,7]
[343607245,1732745489209,-560.556269,0.00024835,7]
[343607246,1732745489218,-560.556269,0.00024835,7]
[343607247,1732745489227,-560.556269,0.00024835,7]
[343607248,1732745489237,-560.556269,0.00024835,7]
[343607249,1732745489247,-151.0,0.00024835,7]
[343607250,1732745489257,-151.0,0.00024835,7]
[343607251,1732745489272,-151.0,0.00024835,7]
[343607252,1732745489281,-151.0,0.00024835,7]
[343607253,1732745489291,-151.0,0.00024835,7]
[343607254,1732745489301,-151.0,0.00024835,7]
[343607255,1732745489311,-174.780875,0.00024835,7]
[343607256,1732745489321,-174.780875,0.00024835,7]
[343607257,1732745489330,-174.780875,0.00024835,7]
[343607258,1732745489340,-891.685498,0.00024835,7]
[343607259,1732745489350,-891.685498,0.00024835,7]
[343607260,1732745489363,-891.685498,0.00024835,7]
[343607261,1732745489373,-174.780875,0.00024835,7]
[343607262,1732745489383,-174.780875,0.00024835,7]
[343607263,1732745489393,-174.780875,0.00024835,7]
[343607264,1732745489403,-891.685498,0.00024835,7]
[343607265,1732745489412,-891.685498,0.00024835,7]
[343607266,1732745489422,-891.685498,0.00024835,7]
[343607267,1732745489432,-190.702193,0.00024836,7]
[343607268,1732745489442,-190.702193,0.00024836,7]
[343607269,1732745489451,-151.0,0.00024836,7]
[343607270,1732745489461,-151.0,0.00024836,7]
[343607271,1732745489471,-151.0,0.00024836,7]
[343607272,1732745489480,-151.0,0.00024836,7]
[343607273,1732745489490,-151.0,0.00024836,7]
[343607274,1732745489500,-151.0,0.00024836,7]
[343607275,1732745489510,-575.582904,0.00024836,7]
[343607276,1732745489520,-575.582904,0.00024836,7]
[343607277,1732745489530,-196.3,0.00024836,7]
[343607278,1732745489701,-196.3,0.00024836,7]
[343607279,1732745489712,-560.556269,0.00024836,7]
[343607280,1732745489721,-560.556269,0.00024836,7]
[343607281,1732745489730,-151.0,0.00024836,7]
[343607282,1732745489739,-151.0,0.00024836,7]
[343607283,1732745489749,-174.780875,0.00024836,7]
[343607284,1732745489758,-174.780875,0.00024836,7]
[343607285,1732745489768,-372.15307172,0.00024873,2]
[343607286,1732745489777,-500.0,0.00024873,2]
[343607287,1732745489787,-160.19749757,0.00024873,2]
[343607288,1732745489796,-302.78807257,0.00025,2]
[343607289,1732745489805,-1708.92468914,0.0002504,2]
[343607290,1732745489815,-2558.52243734,0.0002509,2]
[343607291,1732745489824,-177.172919,0.0002509,7]
[343607292,1732745489833,-177.172915,0.0002509,7]
[343607293,1732745489842,-151.0,0.00025178,7]
[343607294,1732745489853,-420.0,0.000252,2]
[343607295,1732745489865,-1346.95374192,0.0002521,2]
[343607296,1732745489874,-788.06877458,0.00025221,2]
[343607297,1732745489883,-655.81835245,0.00025221,2]
[343607298,1732745489893,-500.58232513,0.00025221,2]
[343607299,1732745489902,-1001.7418656,0.00025221,2]
[343607300,1732745489911,-1000.0,0.00025221,2]
[343607301,1732745489921,-1000.0,0.00025221,2]
[343607302,1732745489931,-1000.0,0.00025221,2]
[343607303,1732745489941,-500.0,0.00025221,2]
[343607304,1732745489951,-1000.0,0.00025221,2]
[343607305,1732745489962,-302.78807257,0.0002525,2]
[343607306,1732745489972,-323.0495174,0.00025341,2]
[343607307,1732745489983,-502.019044,0.00025419,7]
[343607308,1732745489994,-502.019044,0.00025419,7]
[343607309,1732745490004,-304.368556,0.00025419,7]
[343607310,1732745490013,-304.368558,0.00025419,7]
[343607311,1732745490023,-891.685498,0.00025419,7]
[343607312,1732745490034,-891.685508,0.00025419,7]
[343607313,1732745490043,-1000.0,0.00025421,2]
[343607314,1732745490053,-202.0,0.00025468,2]
[343607315,1732745490063,-302.78807257,0.000255,2]
[343607316,1732745490074,-500.0,0.0002552,2]
[343607317,1732745490084,-1708.92468914,0.00025522,2]
[343607318,1732745490095,-420.0,0.00025542,2]
[343607319,1732745490104,-161.32101328,0.00025721,2]
[343607320,1732745490118,-161.660856,0.00025722,2]
[343607321,1732745490127,-575.582904,0.00025722,7]
[343607322,1732745490137,-575.582902,0.00025722,7]
[343607323,1732745490146,-196.3,0.00025722,7]
[343607324,1732745490156,-196.3,0.00025722,7]
[343607325,1732745490165,-560.556269,0.00025722,7]
[343607326,1732745490175,-560.556273,0.00025722,7]
[343607327,1732745490186,-151.0,0.00025722,7]
[343607328,1732745490196,-216.783425,0.00025722,7]
[343607329,1732745490208,-174.780875,0.00025722,7]
[343607330,1732745490218,-174.780881,0.00025722,7]
[343607331,1732745490227,-302.78807257,0.0002575,2]
[343607332,1732745490237,-190.0,0.00025775,2]
[343607333,1732745490247,-151.0,0.0002582,7]
[343607334,1732745490257,-190.702193,0.00025821,7]
[343607335,1732745490267,-190.702193,0.00025821,7]
[343607336,1732745490276,-223.208147,0.00025821,7]
[343607337,1732745490285,-151.0,0.00025821,7]
[343607338,1732745490295,-151.0,0.00025821,7]
[343607339,1732745490304,-151.216463,0.00025821,7]
[343607340,1732745490314,-151.0,0.00025821,7]
[343607341,1732745490324,-502.019044,0.00025821,7]
[343607342,1732745490333,-502.019044,0.00025821,7]
[343607343,1732745490343,-151.0,0.00025821,7]
[343607344,1732745490352,-151.0,0.00025821,7]
[343607345,1732745490364,-196.3,0.00025821,7]
[343607346,1732745490374,-196.3,0.00025821,7]
[343607347,1732745490383,-196.3,0.00025821,7]
[343607348,1732745490393,-196.3,0.00025821,7]
[343607349,1732745490402,-151.0,0.00025821,7]
[343607350,1732745490413,-151.0,0.00025821,7]
[343607351,1732745490423,-190.702193,0.00025822,7]
[343607352,1732745490432,-190.702193,0.00025822,7]
[343607353,1732745490442,-190.702193,0.00025822,7]
[343607354,1732745490451,-190.702193,0.00025822,7]
[343607355,1732745490461,-151.0,0.00025822,7]
[343607356,1732745490471,-151.0,0.00025822,7]
[343607357,1732745490480,-151.0,0.00025822,7]
[343607358,1732745490490,-151.0,0.00025822,7]
[343607359,1732745490499,-151.0,0.00025822,7]
[343607360,1732745490509,-502.019044,0.00025822,7]
[343607361,1732745490519,-502.019044,0.00025822,7]
[343607362,1732745490529,-502.019044,0.00025822,7]
[343607363,1732745490539,-502.019044,0.00025822,7]
[343607364,1732745490548,-151.0,0.00025822,7]
[343607365,1732745490558,-151.0,0.00025822,7]
[343607366,1732745490568,-151.0,0.00025822,7]
[343607367,1732745490578,-151.0,0.00025822,7]
[343607368,1732745490588,-190.702193,0.00025823,7]
[343607369,1732745490598,-190.702193,0.00025823,7]
[343607370,1732745490607,-190.702193,0.00025823,7]
[343607371,1732745490622,-190.702193,0.00025823,7]
[343607372,1732745490632,-151.0,0.00025823,7]
[343607373,1732745490642,-151.0,0.00025823,7]
[343607374,1732745490651,-151.0,0.00025823,7]
[343607375,1732745490662,-151.0,0.00025823,7]
[343607376,1732745490673,-151.0,0.00025823,7]
[343607377,1732745490683,-151.0,0.00025823,7]
[343607378,1732745490692,-151.0,0.00025823,7]
[343607379,1732745490703,-192.529723,0.00025823,7]
[343607380,1732745490713,-192.529723,0.00025823,7]
[343607381,1732745490722,-502.019044,0.00025823,7]
[343607382,1732745490732,-502.019044,0.00025823,7]
[343607383,1732745490741,-151.0,0.00025823,7]
[343607384,1732745490751,-151.0,0.00025823,7]
[343607385,1732745490761,-182.4,0.00025823,11]
[343607386,1732745490771,-151.0,0.00025824,7]
[343607387,1732745490780,-151.0,0.00025824,7]
[343607388,1732745490789,-151.0,0.00025824,7]
[343607389,1732745490799,-151.0,0.00025824,7]
[343607390,1732745490809,-190.702193,0.00025824,7]
[343607391,1732745490819,-190.702193,0.00025824,7]
[343607392,1732745490830,-190.702193,0.00025824,7]
[343607393,1732745490840,-190.702193,0.00025824,7]
[343607394,1732745490851,-151.0,0.00025824,7]
[343607395,1732745490861,-151.0,0.00025824,7]
[343607396,1732745490873,-151.0,0.00025824,7]
[343607397,1732745490889,-174.397072,0.00025824,7]
[343607398,1732745490898,-164.429,0.00025824,7]
[343607399,1732745490907,-192.529723,0.00025824,7]
[343607400,1732745490916,-192.529723,0.00025824,7]
[343607401,1732745490926,-192.529723,0.00025824,7]
[343607402,1732745490935,-192.529723,0.00025824,7]
[343607403,1732745490945,-192.529723,0.00025824,7]
[343607404,1732745490954,-192.529723,0.00025824,7]
[343607405,1732745490964,-502.019044,0.00025824,7]
[343607406,1732745490974,-502.019038,0.00025824,7]
[343607407,1732745490983,-151.0,0.00025824,7]
[343607408,1732745490992,-151.0,0.00025824,7]
[343607409,1732745491001,-151.0,0.00025825,7]
[343607410,1732745491010,-151.0,0.00025825,7]
[343607411,1732745491020,-190.702193,0.00025825,7]
[343607412,1732745491029,-190.702193,0.00025825,7]
[343607413,1732745491038,-151.0,0.00025825,7]
[343607414,1732745491047,-192.529723,0.00025825,7]
[343607415,1732745491057,-192.529723,0.00025825,7]
[343607416,1732745491067,-192.529723,0.00025826,7]
[343607417,1732745491076,-192.529723,0.00025826,7]
[343607418,1732745491085,-151.0,0.00025872,7]
[343607419,1732745491095,-553.10676509,0.000259,2]
[343607420,1732745491104,-515.66840132,0.000259,2]
[343607421,1732745491118,-510.19432561,0.000259,2]
[343607422,1732745491127,-321.44600648,0.000259,2]
[343607423,1732745491137,-192.529723,0.00026,7]
[343607424,1732745491146,-192.529723,0.00026,7]
[343607425,1732745491155,-266.43029461,0.00026,2]
[343607426,1732745491165,-1708.92468914,0.00026005,2]
[343607427,1732745491175,-1165.26,0.00026017,3]
[343607428,1732745491184,-582.64,0.00026017,3]
[343607429,1732745491195,-1346.95374192,0.00026133,2]
[343607430,1732745491205,-1011.94942224,0.00026222,2]
[343607431,1732745491217,-1500.0,0.00026222,2]
[343607432,1732745491227,-1500.0,0.00026222,2]
[343607433,1732745491238,-1263.87855238,0.00026222,2]
[343607434,1732745491248,-185.3,0.00026382,4]
[343607435,1732745491258,-500.78256721,0.00026422,2]
[343607436,1732745491267,-1708.92468914,0.00026487,2]
[343607437,1732745491277,-310.65247587,0.00026608,2]
[343607438,1732745491286,-151.0,0.00026702,7]
[343607439,1732745491296,-151.0,0.00026702,7]
[343607440,1732745491305,-151.0,0.00026703,7]
[343607441,1732745491315,-192.529723,0.00026703,7]
[343607442,1732745491325,-192.529723,0.00026703,7]
[343607443,1732745491335,-185.3,0.00026827,5]
[343607444,1732745491345,-303.764448,0.00026921,2]
[343607445,1732745491355,-1708.92468914,0.0002697,2]
[343607446,1732745491367,-1346.95374192,0.00027055,2]
[343607447,1732745491376,-297.561165,0.000271,13]
[343607448,1732745491386,-198.0,0.00027166,2]
[343607449,1732745491395,-185.3,0.00027273,5]
[343607450,1732745491404,-151.0,0.00027284,7]
[343607451,1732745491414,-154.288495,0.00027284,7]
[343607452,1732745491423,-587.0,0.0002735,2]
[343607453,1732745491433,-190.0,0.00027386,2]
[343607454,1732745491442,-500.0,0.00027397,2]
[343607455,1732745491452,-500.0,0.00027397,3]
[343607456,1732745491462,-151.0,0.000274,11]
[343607457,1732745491471,-1708.92468914,0.00027452,2]
[343607458,1732745491480,-2000.0,0.0002752,5]
[343607459,1732745491490,-1159.09076086,0.0002752,5]
[343607460,1732745491499,-190.0,0.00027616,2]
[343607461,1732745491509,-151.0,0.000277,16]
[343607462,1732745491518,-151.0,0.00027716,7]
[343607463,1732745491527,-151.0,0.00027716,7]
[343607464,1732745491537,-166.337466,0.00027716,7]
[343607465,1732745491546,-192.529723,0.00027716,7]
[343607466,1732745491556,-192.529723,0.00027716,7]
[343607467,1732745491566,-192.529723,0.00027716,7]
[343607468,1732745491575,-192.529723,0.00027716,7]
[343607469,1732745491585,-151.0,0.00027717,7]
[343607470,1732745491595,-151.0,0.00027717,7]
[343607471,1732745491604,-151.0,0.00027718,7]
[343607472,1732745491618,-151.0,0.00027718,7]
[343607473,1732745491627,-151.0,0.00027718,7]
[343607474,1732745491636,-151.0,0.00027718,7]
[343607475,1732745491646,-185.3,0.00027718,5]
[343607476,1732745491655,-151.813813,0.00027719,7]
[343607477,1732745491665,-151.823686,0.00027719,7]
[343607478,1732745491675,-151.0,0.00027719,7]
[343607479,1732745491686,-151.0,0.00027772,7]
[343607480,1732745491697,-1708.92468914,0.00027935,2]
[343607481,1732745491708,-310.03262379,0.00027938,2]
[343607482,1732745491719,-291.0022374,0.00027973,5]
[343607483,1732745491729,-1346.95374192,0.00027978,2]
[343607484,1732745491739,-1192.9788714,0.00028,2]
[343607485,1732745491748,-133547.77523692,0.00028,30]
[343607486,1732745491758,-31323.28033342,0.00028,2]
[343607487,1732745491767,-438235.99808345,0.00028,15]
[343607488,1732745492478,-419.1543195,0.00024657,3]
[343607489,1732745501757,500.0,0.0002254,2]
[343607490,1732745502017,435.63240488,0.00022677,2]
[343607491,1732745886547,4000.0,0.00022002,7]
[343607492,1732745982444,273.388003,0.00013973,2]
[343607493,1732745982646,273.388003,0.00020447,2]
[343607494,1732746005099,7922.74505753,0.00021061,2]
[343607504,1732746452103,-170.871729,0.00022282,2]
[343607505,1732746452128,-300.0,0.00022652,2]
[343607506,1732746452150,-300.0,0.00022652,2]
[343607507,1732746452175,-17464.0713301,0.00022653,2]
[343607508,1732746452197,-25556.3776742,0.00022691,2]
[343607509,1732746452219,-369.428928,0.00022923,2]
[343607510,1732746452240,-1238.40070822,0.00023629,2]
[343607511,1732746452262,-24900.0,0.00023629,2]
[343607512,1732746452285,-1322.5638549,0.0002375,2]
[343607513,1732746452307,-5725.2741166,0.0002385,2]
[343607514,1732746452329,-173.983722,0.00024279,2]
[343607515,1732746452350,-746.22715872,0.00024557,2]
[343607516,1732746452370,-1603.87540668,0.00024557,2]
[343607517,1732746452392,-420.0,0.00024599,2]
[343607518,1732746452413,-436.97,0.00024647,3]
[343607519,1732746452434,-218.49,0.00024647,3]
[343607520,1732746452456,-655.48,0.00024647,3]
[343607521,1732746452477,-500.0,0.00024656,2]
[343607522,1732746452498,-372.77826042,0.00024656,2]
[343607523,1732746452520,-320.18628965,0.00024656,2]
[343607524,1732746452541,-363.33732056,0.00024656,2]
[343607525,1732746452563,-500.0,0.00024656,2]
[343607526,1732746452584,-395.86310973,0.00024656,2]
[343607527,1732746452606,-500.0,0.00024656,2]
[343607528,1732746452628,-500.0,0.00024656,2]
[343607529,1732746452650,-500.0,0.00024656,2]
[343607530,1732746452672,-500.0,0.00024656,2]
[343607531,1732746452695,-500.0,0.00024656,2]
[343607532,1732746452716,-366.34509396,0.00024656,2]
[343607533,1732746452738,-463.83853489,0.00024656,2]
[343607534,1732746452760,-233.27297178,0.00024656,2]
[343607535,1732746452784,-500.0,0.00024656,2]
[343607536,1732746452808,-500.0,0.00024656,2]
[343607537,1732746452831,-428.8809224,0.00024656,2]
[343607538,1732746452851,-500.0,0.00024657,3]
[343607539,1732746452874,-500.0,0.00024657,3]
[343607540,1732746452896,-500.0,0.00024657,3]
[343607541,1732746452920,-500.0,0.00024657,3]
[343607542,1732746452943,-500.0,0.00024657,3]
[343607543,1732746452965,-502.72902856,0.00024657,3]
[343607544,1732746452986,-505.85820651,0.00024657,3]
[343607545,1732746453007,-500.0,0.00024657,3]
[343607546,1732746453028,-500.0,0.00024657,3]
[343607547,1732746453053,-500.0,0.00024657,3]
[343607548,1732746453076,-500.0,0.00024657,3]
[343607549,1732746453097,-500.79208008,0.00024657,3]
[343607550,1732746453119,-192.529723,0.00024657,7]
[343607551,1732746453142,-192.529723,0.00024657,7]
[343607552,1732746453163,-192.529723,0.00024657,7]
[343607553,1732746453378,-192.529723,0.00024657,7]
[343607554,1732746453403,-192.529723,0.00024657,7]
[343607555,1732746453427,-192.529723,0.00024657,7]
[343607556,1732746453451,-192.529723,0.00024657,7]
[343607557,1732746453475,-500.0,0.00024657,3]
[343607558,1732746453500,-192.529723,0.00024657,7]
[343607559,1732746453525,-192.529723,0.00024657,7]
[343607560,1732746453552,-192.529723,0.00024657,7]
[343607561,1732746453576,-192.529723,0.00024657,7]
[343607562,1732746453601,-500.0,0.00024657,3]
[343607563,1732746453624,-500.0,0.00024657,3]
[343607564,1732746453648,-192.529723,0.00024657,7]
[343607565,1732746453672,-500.0,0.00024657,3]
[343607566,1732746453696,-500.0,0.00024657,3]
[343607567,1732746453720,-500.0,0.00024657,3]
[343607568,1732746453743,-192.529723,0.00024657,7]
[343607569,1732746453766,-500.0,0.00024657,3]
[343607570,1732746453791,-192.529723,0.00024657,7]
[343607571,1732746453817,-500.0,0.00024657,3]
[343607572,1732746453841,-500.0,0.00024657,3]
[343607573,1732746453866,-192.529723,0.00024657,7]
[343607574,1732746453889,-500.0,0.00024657,3]
[343607575,1732746453913,-192.529723,0.00024657,7]
[343607576,1732746453942,-500.0,0.00024657,3]
[343607577,1732746453966,-500.0,0.00024657,3]
[343607578,1732746453990,-192.529723,0.00024657,7]
[343607579,1732746454016,-622.40938616,0.00024657,3]
[343607580,1732746454041,-192.529723,0.00024657,7]
[343607581,1732746454066,-192.529723,0.00024657,7]
[343607582,1732746454089,-192.529723,0.00024657,7]
[343607583,1732746454111,-500.91319726,0.00024657,3]
[343607584,1732746454133,-500.0,0.00024657,3]
[343607585,1732746454156,-500.0,0.00024657,3]
[343607586,1732746454179,-500.0,0.00024657,3]
[343607587,1732746454202,-500.0,0.00024657,3]
[343607588,1732746454225,-500.0,0.00024657,3]
[343607589,1732746454249,-500.0,0.00024657,3]
[343607590,1732746454271,-500.0,0.00024657,3]
[343607591,1732746454303,-500.0,0.00024657,3]
[343607592,1732746454325,-500.0,0.00024657,3]
[343607593,1732746454347,-506.65555527,0.00024657,3]
[343607594,1732746454369,-500.0,0.00024657,3]
[343607595,1732746454391,-500.0,0.00024657,3]
[343607596,1732746454412,-414.54048949,0.00024657,3]
[343607597,1732746454433,-167.72843658,0.00024657,3]
[343607598,1732746454454,-500.0,0.00024657,3]
[343607599,1732746454475,-500.0,0.00024657,3]
[343607600,1732746454496,-500.0,0.00024657,3]
[343607601,1732746454518,-500.0,0.00024657,3]
[343607602,1732746454539,-270.54548069,0.00024657,3]
[343607603,1732746454564,-500.0,0.00024657,3]
[343607604,1732746454586,-628.78430385,0.00024657,3]
[343607605,1732746454609,-631.89906472,0.00024657,3]
[343607606,1732746454631,-500.0,0.00024657,3]
[343607607,1732746454653,-500.0,0.00024657,3]
[343607608,1732746454675,-500.0,0.00024657,3]
[343607609,1732746454698,-506.1729223,0.00024657,3]
[343607610,1732746454721,-500.0,0.00024657,3]
[343607611,1732746454744,-233.10156646,0.00024657,3]
[343607612,1732746454766,-500.0,0.00024657,3]
[343607613,1732746454788,-500.0,0.00024657,3]
[343607614,1732746454818,-500.0,0.00024657,3]
[343607615,1732746454840,-500.0,0.00024657,3]
[343607616,1732746454863,-500.0,0.00024657,3]
[343607617,1732746454885,-500.0,0.00024657,3]
[343607618,1732746454910,-500.0,0.00024657,3]
[343607619,1732746454931,-500.0,0.00024657,3]
[343607620,1732746454953,-500.0,0.00024657,3]
[343607621,1732746454976,-151.0,0.00024657,7]
[343607622,1732746454999,-151.581208,0.00024657,7]
[343607623,1732746455021,-500.0,0.00024657,3]
[343607624,1732746455042,-500.0,0.00024657,3]
[343607625,1732746455069,-539.23363693,0.00024657,3]
[343607626,1732746455090,-505.85521365,0.00024657,3]
[343607627,1732746455110,-506.02691701,0.00024657,3]
[343607628,1732746455131,-500.0,0.00024657,3]
[343607629,1732746455153,-500.0,0.00024657,3]
[343607630,1732746455174,-500.0,0.00024657,3]
[343607631,1732746455197,-500.0,0.00024657,3]
[343607632,1732746455220,-244.0618767,0.00024657,3]
[343607633,1732746455242,-500.0,0.00024657,3]
[343607634,1732746455265,-500.0,0.00024657,3]
[343607635,1732746455287,-500.0,0.00024657,3]
[343607636,1732746455312,-500.0,0.00024657,3]
[343607637,1732746455333,-500.0,0.00024657,3]
[343607638,1732746455355,-500.0,0.00024657,3]
[343607639,1732746455377,-500.0,0.00024657,3]
[343607640,1732746455399,-500.0,0.00024657,3]
[343607641,1732746455422,-500.0,0.00024657,3]
[343607642,1732746455452,-500.0,0.00024657,3]
[343607643,1732746455479,-500.0,0.00024657,3]
[343607644,1732746455506,-300.00297749,0.00024657,3]
[343607645,1732746455530,-152.45179911,0.00024657,3]
[343607646,1732746455555,-500.0,0.00024657,3]
[343607647,1732746455581,-500.0,0.00024657,3]
[343607648,1732746455607,-500.0,0.00024657,3]
[343607649,1732746455633,-216.72388691,0.00024657,3]
[343607650,1732746455659,-500.0,0.00024657,3]
[343607651,1732746455682,-500.0,0.00024657,3]
[343607652,1732746455708,-507.43414034,0.00024657,3]
[343607653,1732746455733,-500.0,0.00024657,3]
[343607654,1732746455759,-500.0,0.00024657,3]
[343607655,1732746455784,-500.0,0.00024657,3]
[343607656,1732746455813,-500.0,0.00024657,3]
[343607657,1732746455839,-211.45,0.00024657,3]
[343607658,1732746455865,-500.0,0.00024657,3]
[343607659,1732746455889,-332.14286889,0.00024657,3]
[343607660,1732746455916,-407.07576864,0.00024657,3]
[343607661,1732746455942,-500.0,0.00024657,3]
[343607662,1732746455967,-500.0,0.00024657,3]
[343607663,1732746455995,-500.0,0.00024657,3]
[343607664,1732746456019,-500.0,0.00024657,3]
[343607665,1732746456043,-500.0,0.00024657,3]
[343607666,1732746456068,-500.0,0.00024657,3]
[343607667,1732746456092,-500.0,0.00024657,3]
[343607668,1732746456117,-500.0,0.00024657,3]
[343607669,1732746456140,-518.00523187,0.00024657,3]
[343607670,1732746456164,-500.0,0.00024657,3]
[343607671,1732746456189,-500.0,0.00024657,3]
[343607672,1732746456215,-292.05055242,0.00024657,3]
[343607673,1732746456241,-500.0,0.00024657,3]
[343607674,1732746456264,-500.0,0.00024657,3]
[343607675,1732746456289,-534.88737927,0.00024657,3]
[343607676,1732746456321,-500.0,0.00024657,3]
[343607677,1732746456347,-500.0,0.00024657,3]
[343607678,1732746456373,-500.0,0.00024657,3]
[343607679,1732746456398,-500.0,0.00024657,3]
[343607680,1732746456423,-500.0,0.00024657,3]
[343607681,1732746456445,-500.0,0.00024657,3]
[343607682,1732746456467,-431.04,0.00024657,3]
[343607683,1732746456490,-412.05916029,0.00024657,3]
[343607684,1732746456515,-500.0,0.00024657,3]
[343607685,1732746456542,-500.0,0.00024657,3]
[343607686,1732746456568,-500.0,0.00024657,3]
[343607687,1732746456594,-500.0,0.00024657,3]
[343607688,1732746456616,-500.0,0.00024657,3]
[343607689,1732746456640,-500.0,0.00024657,3]
[343607690,1732746456663,-500.0,0.00024657,3]
[343607691,1732746456686,-456.16345491,0.00024657,3]
[343607692,1732746456710,-236.48701781,0.00024657,3]
[343607693,1732746456734,-673.01811596,0.00024657,10]
[343607694,1732746456757,-500.0,0.00024657,3]
[343607695,1732746456780,-500.0,0.00024657,3]
[343607696,1732746456805,-500.0,0.00024657,3]
[343607697,1732746456827,-500.0,0.00024657,3]
[343607698,1732746456850,-500.0,0.00024657,3]
[343607699,1732746456873,-500.0,0.00024657,3]
[343607700,1732746456896,-500.0,0.00024657,3]